{"text_format":"1","workbook":"xlsx","n_sheets":1,"sheets":["Математика"],"not_rendered":{"charts":0,"images":0,"macros":1,"external_links":0,"defined_names":4,"comments":0,"pivot_tables":0},"unopened":[],"bounds":{"document_bytes":16777216,"sheet_cells":100000,"rows_first":2000,"rows_last":500,"rows_between":2000,"halvings":0,"cell_chars":16384,"cell_head_chars":4096},"cells_cut":0,"cells_raw":0,"read":"whole","date_system":"1900"}

{"sheet":"Математика","index":0,"n_rows":24,"n_cols":11,"rows_kept":24,"cut":false,"hidden":false,"merged":[[0,4,0,6],[0,7,0,8]]}
[null,null,null,null,"Количество часов",null,null,"Даты проведения"]
["Блоки","Разделы","Номер урока/занятия","Содержание(Блокы, темы)","Урок","Раздел","Блок","План","Факт","Материально-техническое оснащение","Универсальные учебные действия(УУД), проекты, ИКТ-компетенции, межпредметные понятия"]
["Блок",null,{"$f":"IF(AND(ISBLANK(Таблица2[[#This Row],[Блоки]:[Разделы]])),MAX(Таблица2[[#Headers],[Номер урока/занятия]]:INDEX(Таблица2[[#All],[Номер урока/занятия]],ROW()-2))+1,\"\")","v":""},"Множество предметов. Отношения между предметами и между множествами предметов",null,{"$f":"IF(Таблица2[[#This Row],[Разделы]]=\"\",\"\",SUM(Таблица2[[#This Row],[Урок]:[Урок]]:INDEX(Таблица2[[Урок]:[Урок]],ROW()+MATCH(Таблица2[[#Headers],[Раздел]],INDEX(Таблица2[Разделы],ROW()-1):Таблица2[[#Totals],[Разделы]],)-1-ROW(Таблица2[#Headers]))))","v":""},{"$f":"IF(Таблица2[[#This Row],[Блоки]]=\"\",\"\",SUM(Таблица2[[#This Row],[Урок]:[Урок]]:INDEX(Таблица2[Урок]:Таблица2[Урок],ROW()+MATCH(Таблица2[[#Headers],[Блок]],INDEX(Таблица2[Блоки],ROW()-1):Таблица2[[#Totals],[Блоки]],)-1-ROW(Таблица2[#Headers]))))","v":3},null,null,"Учебник «МаРазделтика», ч. 1. Рабочая тетрадь № 1. ","Сравнивать предметы с целью выявления "]
[null,"Раздел",{"$f":"IF(AND(ISBLANK(Таблица2[[#This Row],[Блоки]:[Разделы]])),MAX(Таблица2[[#Headers],[Номер урока/занятия]]:INDEX(Таблица2[[#All],[Номер урока/занятия]],ROW()-2))+1,\"\")","v":""},"Предметы и их свойства",null,{"$f":"IF(Таблица2[[#This Row],[Разделы]]=\"\",\"\",SUM(Таблица2[[#This Row],[Урок]:[Урок]]:INDEX(Таблица2[[Урок]:[Урок]],ROW()+MATCH(Таблица2[[#Headers],[Раздел]],INDEX(Таблица2[Разделы],ROW()-1):Таблица2[[#Totals],[Разделы]],)-1-ROW(Таблица2[#Headers]))))","v":1},{"$f":"IF(Таблица2[[#This Row],[Блоки]]=\"\",\"\",SUM(Таблица2[[#This Row],[Урок]:[Урок]]:INDEX(Таблица2[Урок]:Таблица2[Урок],ROW()+MATCH(Таблица2[[#Headers],[Блок]],INDEX(Таблица2[Блоки],ROW()-1):Таблица2[[#Totals],[Блоки]],)-1-ROW(Таблица2[#Headers]))))","v":""},null,null,"Методическое пособие. ","в них сходств и различий."]
[null,null,{"$f":"IF(AND(ISBLANK(Таблица2[[#This Row],[Блоки]:[Разделы]])),MAX(Таблица2[[#Headers],[Номер урока/занятия]]:INDEX(Таблица2[[#All],[Номер урока/занятия]],ROW()-2))+1,\"\")","v":1},"Сравнение предметов по их свойствам.",1,{"$f":"IF(Таблица2[[#This Row],[Разделы]]=\"\",\"\",SUM(Таблица2[[#This Row],[Урок]:[Урок]]:INDEX(Таблица2[[Урок]:[Урок]],ROW()+MATCH(Таблица2[[#Headers],[Раздел]],INDEX(Таблица2[Разделы],ROW()-1):Таблица2[[#Totals],[Разделы]],)-1-ROW(Таблица2[#Headers]))))","v":""},{"$f":"IF(Таблица2[[#This Row],[Блоки]]=\"\",\"\",SUM(Таблица2[[#This Row],[Урок]:[Урок]]:INDEX(Таблица2[Урок]:Таблица2[Урок],ROW()+MATCH(Таблица2[[#Headers],[Блок]],INDEX(Таблица2[Блоки],ROW()-1):Таблица2[[#Totals],[Блоки]],)-1-ROW(Таблица2[#Headers]))))","v":""},"01.09","01.09","Наглядный и раздаточный","Выделять из множества предметов один"]
[null,"Раздел",{"$f":"IF(AND(ISBLANK(Таблица2[[#This Row],[Блоки]:[Разделы]])),MAX(Таблица2[[#Headers],[Номер урока/занятия]]:INDEX(Таблица2[[#All],[Номер урока/занятия]],ROW()-2))+1,\"\")","v":""},"Отношения между предметами, фигурами",null,{"$f":"IF(Таблица2[[#This Row],[Разделы]]=\"\",\"\",SUM(Таблица2[[#This Row],[Урок]:[Урок]]:INDEX(Таблица2[[Урок]:[Урок]],ROW()+MATCH(Таблица2[[#Headers],[Раздел]],INDEX(Таблица2[Разделы],ROW()-1):Таблица2[[#Totals],[Разделы]],)-1-ROW(Таблица2[#Headers]))))","v":2},{"$f":"IF(Таблица2[[#This Row],[Блоки]]=\"\",\"\",SUM(Таблица2[[#This Row],[Урок]:[Урок]]:INDEX(Таблица2[Урок]:Таблица2[Урок],ROW()+MATCH(Таблица2[[#Headers],[Блок]],INDEX(Таблица2[Блоки],ROW()-1):Таблица2[[#Totals],[Блоки]],)-1-ROW(Таблица2[#Headers]))))","v":""},"02.09",null," материал, карточки.  Интерактивная доска."," или несколько предметов по заданному свойству"]
[null,null,{"$f":"IF(AND(ISBLANK(Таблица2[[#This Row],[Блоки]:[Разделы]])),MAX(Таблица2[[#Headers],[Номер урока/занятия]]:INDEX(Таблица2[[#All],[Номер урока/занятия]],ROW()-2))+1,\"\")","v":2},"Классификация элементов множества",1,{"$f":"IF(Таблица2[[#This Row],[Разделы]]=\"\",\"\",SUM(Таблица2[[#This Row],[Урок]:[Урок]]:INDEX(Таблица2[[Урок]:[Урок]],ROW()+MATCH(Таблица2[[#Headers],[Раздел]],INDEX(Таблица2[Разделы],ROW()-1):Таблица2[[#Totals],[Разделы]],)-1-ROW(Таблица2[#Headers]))))","v":""},{"$f":"IF(Таблица2[[#This Row],[Блоки]]=\"\",\"\",SUM(Таблица2[[#This Row],[Урок]:[Урок]]:INDEX(Таблица2[Урок]:Таблица2[Урок],ROW()+MATCH(Таблица2[[#Headers],[Блок]],INDEX(Таблица2[Блоки],ROW()-1):Таблица2[[#Totals],[Блоки]],)-1-ROW(Таблица2[#Headers]))))","v":""}]
[null,null,{"$f":"IF(AND(ISBLANK(Таблица2[[#This Row],[Блоки]:[Разделы]])),MAX(Таблица2[[#Headers],[Номер урока/занятия]]:INDEX(Таблица2[[#All],[Номер урока/занятия]],ROW()-2))+1,\"\")","v":3},"Классификация элементов множества",1,{"$f":"IF(Таблица2[[#This Row],[Разделы]]=\"\",\"\",SUM(Таблица2[[#This Row],[Урок]:[Урок]]:INDEX(Таблица2[[Урок]:[Урок]],ROW()+MATCH(Таблица2[[#Headers],[Раздел]],INDEX(Таблица2[Разделы],ROW()-1):Таблица2[[#Totals],[Разделы]],)-1-ROW(Таблица2[#Headers]))))","v":""},{"$f":"IF(Таблица2[[#This Row],[Блоки]]=\"\",\"\",SUM(Таблица2[[#This Row],[Урок]:[Урок]]:INDEX(Таблица2[Урок]:Таблица2[Урок],ROW()+MATCH(Таблица2[[#Headers],[Блок]],INDEX(Таблица2[Блоки],ROW()-1):Таблица2[[#Totals],[Блоки]],)-1-ROW(Таблица2[#Headers]))))","v":""}]
["Блок",null,{"$f":"IF(AND(ISBLANK(Таблица2[[#This Row],[Блоки]:[Разделы]])),MAX(Таблица2[[#Headers],[Номер урока/занятия]]:INDEX(Таблица2[[#All],[Номер урока/занятия]],ROW()-2))+1,\"\")","v":""},null,null,{"$f":"IF(Таблица2[[#This Row],[Разделы]]=\"\",\"\",SUM(Таблица2[[#This Row],[Урок]:[Урок]]:INDEX(Таблица2[[Урок]:[Урок]],ROW()+MATCH(Таблица2[[#Headers],[Раздел]],INDEX(Таблица2[Разделы],ROW()-1):Таблица2[[#Totals],[Разделы]],)-1-ROW(Таблица2[#Headers]))))","v":""},{"$f":"IF(Таблица2[[#This Row],[Блоки]]=\"\",\"\",SUM(Таблица2[[#This Row],[Урок]:[Урок]]:INDEX(Таблица2[Урок]:Таблица2[Урок],ROW()+MATCH(Таблица2[[#Headers],[Блок]],INDEX(Таблица2[Блоки],ROW()-1):Таблица2[[#Totals],[Блоки]],)-1-ROW(Таблица2[#Headers]))))","v":2}]
[null,"Раздел",{"$f":"IF(AND(ISBLANK(Таблица2[[#This Row],[Блоки]:[Разделы]])),MAX(Таблица2[[#Headers],[Номер урока/занятия]]:INDEX(Таблица2[[#All],[Номер урока/занятия]],ROW()-2))+1,\"\")","v":""},null,null,{"$f":"IF(Таблица2[[#This Row],[Разделы]]=\"\",\"\",SUM(Таблица2[[#This Row],[Урок]:[Урок]]:INDEX(Таблица2[[Урок]:[Урок]],ROW()+MATCH(Таблица2[[#Headers],[Раздел]],INDEX(Таблица2[Разделы],ROW()-1):Таблица2[[#Totals],[Разделы]],)-1-ROW(Таблица2[#Headers]))))","v":2},{"$f":"IF(Таблица2[[#This Row],[Блоки]]=\"\",\"\",SUM(Таблица2[[#This Row],[Урок]:[Урок]]:INDEX(Таблица2[Урок]:Таблица2[Урок],ROW()+MATCH(Таблица2[[#Headers],[Блок]],INDEX(Таблица2[Блоки],ROW()-1):Таблица2[[#Totals],[Блоки]],)-1-ROW(Таблица2[#Headers]))))","v":""}]
[null,null,{"$f":"IF(AND(ISBLANK(Таблица2[[#This Row],[Блоки]:[Разделы]])),MAX(Таблица2[[#Headers],[Номер урока/занятия]]:INDEX(Таблица2[[#All],[Номер урока/занятия]],ROW()-2))+1,\"\")","v":4},null,1,{"$f":"IF(Таблица2[[#This Row],[Разделы]]=\"\",\"\",SUM(Таблица2[[#This Row],[Урок]:[Урок]]:INDEX(Таблица2[[Урок]:[Урок]],ROW()+MATCH(Таблица2[[#Headers],[Раздел]],INDEX(Таблица2[Разделы],ROW()-1):Таблица2[[#Totals],[Разделы]],)-1-ROW(Таблица2[#Headers]))))","v":""},{"$f":"IF(Таблица2[[#This Row],[Блоки]]=\"\",\"\",SUM(Таблица2[[#This Row],[Урок]:[Урок]]:INDEX(Таблица2[Урок]:Таблица2[Урок],ROW()+MATCH(Таблица2[[#Headers],[Блок]],INDEX(Таблица2[Блоки],ROW()-1):Таблица2[[#Totals],[Блоки]],)-1-ROW(Таблица2[#Headers]))))","v":""}]
[null,null,{"$f":"IF(AND(ISBLANK(Таблица2[[#This Row],[Блоки]:[Разделы]])),MAX(Таблица2[[#Headers],[Номер урока/занятия]]:INDEX(Таблица2[[#All],[Номер урока/занятия]],ROW()-2))+1,\"\")","v":5},null,1,{"$f":"IF(Таблица2[[#This Row],[Разделы]]=\"\",\"\",SUM(Таблица2[[#This Row],[Урок]:[Урок]]:INDEX(Таблица2[[Урок]:[Урок]],ROW()+MATCH(Таблица2[[#Headers],[Раздел]],INDEX(Таблица2[Разделы],ROW()-1):Таблица2[[#Totals],[Разделы]],)-1-ROW(Таблица2[#Headers]))))","v":""},{"$f":"IF(Таблица2[[#This Row],[Блоки]]=\"\",\"\",SUM(Таблица2[[#This Row],[Урок]:[Урок]]:INDEX(Таблица2[Урок]:Таблица2[Урок],ROW()+MATCH(Таблица2[[#Headers],[Блок]],INDEX(Таблица2[Блоки],ROW()-1):Таблица2[[#Totals],[Блоки]],)-1-ROW(Таблица2[#Headers]))))","v":""}]
["Блок",null,{"$f":"IF(AND(ISBLANK(Таблица2[[#This Row],[Блоки]:[Разделы]])),MAX(Таблица2[[#Headers],[Номер урока/занятия]]:INDEX(Таблица2[[#All],[Номер урока/занятия]],ROW()-2))+1,\"\")","v":""},null,null,{"$f":"IF(Таблица2[[#This Row],[Разделы]]=\"\",\"\",SUM(Таблица2[[#This Row],[Урок]:[Урок]]:INDEX(Таблица2[[Урок]:[Урок]],ROW()+MATCH(Таблица2[[#Headers],[Раздел]],INDEX(Таблица2[Разделы],ROW()-1):Таблица2[[#Totals],[Разделы]],)-1-ROW(Таблица2[#Headers]))))","v":""},{"$f":"IF(Таблица2[[#This Row],[Блоки]]=\"\",\"\",SUM(Таблица2[[#This Row],[Урок]:[Урок]]:INDEX(Таблица2[Урок]:Таблица2[Урок],ROW()+MATCH(Таблица2[[#Headers],[Блок]],INDEX(Таблица2[Блоки],ROW()-1):Таблица2[[#Totals],[Блоки]],)-1-ROW(Таблица2[#Headers]))))","v":3}]
[null,"Раздел",{"$f":"IF(AND(ISBLANK(Таблица2[[#This Row],[Блоки]:[Разделы]])),MAX(Таблица2[[#Headers],[Номер урока/занятия]]:INDEX(Таблица2[[#All],[Номер урока/занятия]],ROW()-2))+1,\"\")","v":""},null,null,{"$f":"IF(Таблица2[[#This Row],[Разделы]]=\"\",\"\",SUM(Таблица2[[#This Row],[Урок]:[Урок]]:INDEX(Таблица2[[Урок]:[Урок]],ROW()+MATCH(Таблица2[[#Headers],[Раздел]],INDEX(Таблица2[Разделы],ROW()-1):Таблица2[[#Totals],[Разделы]],)-1-ROW(Таблица2[#Headers]))))","v":3},{"$f":"IF(Таблица2[[#This Row],[Блоки]]=\"\",\"\",SUM(Таблица2[[#This Row],[Урок]:[Урок]]:INDEX(Таблица2[Урок]:Таблица2[Урок],ROW()+MATCH(Таблица2[[#Headers],[Блок]],INDEX(Таблица2[Блоки],ROW()-1):Таблица2[[#Totals],[Блоки]],)-1-ROW(Таблица2[#Headers]))))","v":""}]
[null,null,{"$f":"IF(AND(ISBLANK(Таблица2[[#This Row],[Блоки]:[Разделы]])),MAX(Таблица2[[#Headers],[Номер урока/занятия]]:INDEX(Таблица2[[#All],[Номер урока/занятия]],ROW()-2))+1,\"\")","v":6},null,1,{"$f":"IF(Таблица2[[#This Row],[Разделы]]=\"\",\"\",SUM(Таблица2[[#This Row],[Урок]:[Урок]]:INDEX(Таблица2[[Урок]:[Урок]],ROW()+MATCH(Таблица2[[#Headers],[Раздел]],INDEX(Таблица2[Разделы],ROW()-1):Таблица2[[#Totals],[Разделы]],)-1-ROW(Таблица2[#Headers]))))","v":""},{"$f":"IF(Таблица2[[#This Row],[Блоки]]=\"\",\"\",SUM(Таблица2[[#This Row],[Урок]:[Урок]]:INDEX(Таблица2[Урок]:Таблица2[Урок],ROW()+MATCH(Таблица2[[#Headers],[Блок]],INDEX(Таблица2[Блоки],ROW()-1):Таблица2[[#Totals],[Блоки]],)-1-ROW(Таблица2[#Headers]))))","v":""}]
[null,null,{"$f":"IF(AND(ISBLANK(Таблица2[[#This Row],[Блоки]:[Разделы]])),MAX(Таблица2[[#Headers],[Номер урока/занятия]]:INDEX(Таблица2[[#All],[Номер урока/занятия]],ROW()-2))+1,\"\")","v":7},null,1,{"$f":"IF(Таблица2[[#This Row],[Разделы]]=\"\",\"\",SUM(Таблица2[[#This Row],[Урок]:[Урок]]:INDEX(Таблица2[[Урок]:[Урок]],ROW()+MATCH(Таблица2[[#Headers],[Раздел]],INDEX(Таблица2[Разделы],ROW()-1):Таблица2[[#Totals],[Разделы]],)-1-ROW(Таблица2[#Headers]))))","v":""},{"$f":"IF(Таблица2[[#This Row],[Блоки]]=\"\",\"\",SUM(Таблица2[[#This Row],[Урок]:[Урок]]:INDEX(Таблица2[Урок]:Таблица2[Урок],ROW()+MATCH(Таблица2[[#Headers],[Блок]],INDEX(Таблица2[Блоки],ROW()-1):Таблица2[[#Totals],[Блоки]],)-1-ROW(Таблица2[#Headers]))))","v":""}]
[null,null,{"$f":"IF(AND(ISBLANK(Таблица2[[#This Row],[Блоки]:[Разделы]])),MAX(Таблица2[[#Headers],[Номер урока/занятия]]:INDEX(Таблица2[[#All],[Номер урока/занятия]],ROW()-2))+1,\"\")","v":8},null,1,{"$f":"IF(Таблица2[[#This Row],[Разделы]]=\"\",\"\",SUM(Таблица2[[#This Row],[Урок]:[Урок]]:INDEX(Таблица2[[Урок]:[Урок]],ROW()+MATCH(Таблица2[[#Headers],[Раздел]],INDEX(Таблица2[Разделы],ROW()-1):Таблица2[[#Totals],[Разделы]],)-1-ROW(Таблица2[#Headers]))))","v":""},{"$f":"IF(Таблица2[[#This Row],[Блоки]]=\"\",\"\",SUM(Таблица2[[#This Row],[Урок]:[Урок]]:INDEX(Таблица2[Урок]:Таблица2[Урок],ROW()+MATCH(Таблица2[[#Headers],[Блок]],INDEX(Таблица2[Блоки],ROW()-1):Таблица2[[#Totals],[Блоки]],)-1-ROW(Таблица2[#Headers]))))","v":""}]
["Блок",null,{"$f":"IF(AND(ISBLANK(Таблица2[[#This Row],[Блоки]:[Разделы]])),MAX(Таблица2[[#Headers],[Номер урока/занятия]]:INDEX(Таблица2[[#All],[Номер урока/занятия]],ROW()-2))+1,\"\")","v":""},null,null,{"$f":"IF(Таблица2[[#This Row],[Разделы]]=\"\",\"\",SUM(Таблица2[[#This Row],[Урок]:[Урок]]:INDEX(Таблица2[[Урок]:[Урок]],ROW()+MATCH(Таблица2[[#Headers],[Раздел]],INDEX(Таблица2[Разделы],ROW()-1):Таблица2[[#Totals],[Разделы]],)-1-ROW(Таблица2[#Headers]))))","v":""},{"$f":"IF(Таблица2[[#This Row],[Блоки]]=\"\",\"\",SUM(Таблица2[[#This Row],[Урок]:[Урок]]:INDEX(Таблица2[Урок]:Таблица2[Урок],ROW()+MATCH(Таблица2[[#Headers],[Блок]],INDEX(Таблица2[Блоки],ROW()-1):Таблица2[[#Totals],[Блоки]],)-1-ROW(Таблица2[#Headers]))))","v":4}]
[null,"Раздел",{"$f":"IF(AND(ISBLANK(Таблица2[[#This Row],[Блоки]:[Разделы]])),MAX(Таблица2[[#Headers],[Номер урока/занятия]]:INDEX(Таблица2[[#All],[Номер урока/занятия]],ROW()-2))+1,\"\")","v":""},null,null,{"$f":"IF(Таблица2[[#This Row],[Разделы]]=\"\",\"\",SUM(Таблица2[[#This Row],[Урок]:[Урок]]:INDEX(Таблица2[[Урок]:[Урок]],ROW()+MATCH(Таблица2[[#Headers],[Раздел]],INDEX(Таблица2[Разделы],ROW()-1):Таблица2[[#Totals],[Разделы]],)-1-ROW(Таблица2[#Headers]))))","v":4},{"$f":"IF(Таблица2[[#This Row],[Блоки]]=\"\",\"\",SUM(Таблица2[[#This Row],[Урок]:[Урок]]:INDEX(Таблица2[Урок]:Таблица2[Урок],ROW()+MATCH(Таблица2[[#Headers],[Блок]],INDEX(Таблица2[Блоки],ROW()-1):Таблица2[[#Totals],[Блоки]],)-1-ROW(Таблица2[#Headers]))))","v":""}]
[null,null,{"$f":"IF(AND(ISBLANK(Таблица2[[#This Row],[Блоки]:[Разделы]])),MAX(Таблица2[[#Headers],[Номер урока/занятия]]:INDEX(Таблица2[[#All],[Номер урока/занятия]],ROW()-2))+1,\"\")","v":9},null,1,{"$f":"IF(Таблица2[[#This Row],[Разделы]]=\"\",\"\",SUM(Таблица2[[#This Row],[Урок]:[Урок]]:INDEX(Таблица2[[Урок]:[Урок]],ROW()+MATCH(Таблица2[[#Headers],[Раздел]],INDEX(Таблица2[Разделы],ROW()-1):Таблица2[[#Totals],[Разделы]],)-1-ROW(Таблица2[#Headers]))))","v":""},{"$f":"IF(Таблица2[[#This Row],[Блоки]]=\"\",\"\",SUM(Таблица2[[#This Row],[Урок]:[Урок]]:INDEX(Таблица2[Урок]:Таблица2[Урок],ROW()+MATCH(Таблица2[[#Headers],[Блок]],INDEX(Таблица2[Блоки],ROW()-1):Таблица2[[#Totals],[Блоки]],)-1-ROW(Таблица2[#Headers]))))","v":""}]
[null,null,{"$f":"IF(AND(ISBLANK(Таблица2[[#This Row],[Блоки]:[Разделы]])),MAX(Таблица2[[#Headers],[Номер урока/занятия]]:INDEX(Таблица2[[#All],[Номер урока/занятия]],ROW()-2))+1,\"\")","v":10},null,1,{"$f":"IF(Таблица2[[#This Row],[Разделы]]=\"\",\"\",SUM(Таблица2[[#This Row],[Урок]:[Урок]]:INDEX(Таблица2[[Урок]:[Урок]],ROW()+MATCH(Таблица2[[#Headers],[Раздел]],INDEX(Таблица2[Разделы],ROW()-1):Таблица2[[#Totals],[Разделы]],)-1-ROW(Таблица2[#Headers]))))","v":""},{"$f":"IF(Таблица2[[#This Row],[Блоки]]=\"\",\"\",SUM(Таблица2[[#This Row],[Урок]:[Урок]]:INDEX(Таблица2[Урок]:Таблица2[Урок],ROW()+MATCH(Таблица2[[#Headers],[Блок]],INDEX(Таблица2[Блоки],ROW()-1):Таблица2[[#Totals],[Блоки]],)-1-ROW(Таблица2[#Headers]))))","v":""}]
[null,null,{"$f":"IF(AND(ISBLANK(Таблица2[[#This Row],[Блоки]:[Разделы]])),MAX(Таблица2[[#Headers],[Номер урока/занятия]]:INDEX(Таблица2[[#All],[Номер урока/занятия]],ROW()-2))+1,\"\")","v":11},null,1,{"$f":"IF(Таблица2[[#This Row],[Разделы]]=\"\",\"\",SUM(Таблица2[[#This Row],[Урок]:[Урок]]:INDEX(Таблица2[[Урок]:[Урок]],ROW()+MATCH(Таблица2[[#Headers],[Раздел]],INDEX(Таблица2[Разделы],ROW()-1):Таблица2[[#Totals],[Разделы]],)-1-ROW(Таблица2[#Headers]))))","v":""},{"$f":"IF(Таблица2[[#This Row],[Блоки]]=\"\",\"\",SUM(Таблица2[[#This Row],[Урок]:[Урок]]:INDEX(Таблица2[Урок]:Таблица2[Урок],ROW()+MATCH(Таблица2[[#Headers],[Блок]],INDEX(Таблица2[Блоки],ROW()-1):Таблица2[[#Totals],[Блоки]],)-1-ROW(Таблица2[#Headers]))))","v":""}]
[null,null,{"$f":"IF(AND(ISBLANK(Таблица2[[#This Row],[Блоки]:[Разделы]])),MAX(Таблица2[[#Headers],[Номер урока/занятия]]:INDEX(Таблица2[[#All],[Номер урока/занятия]],ROW()-2))+1,\"\")","v":12},null,1,{"$f":"IF(Таблица2[[#This Row],[Разделы]]=\"\",\"\",SUM(Таблица2[[#This Row],[Урок]:[Урок]]:INDEX(Таблица2[[Урок]:[Урок]],ROW()+MATCH(Таблица2[[#Headers],[Раздел]],INDEX(Таблица2[Разделы],ROW()-1):Таблица2[[#Totals],[Разделы]],)-1-ROW(Таблица2[#Headers]))))","v":""},{"$f":"IF(Таблица2[[#This Row],[Блоки]]=\"\",\"\",SUM(Таблица2[[#This Row],[Урок]:[Урок]]:INDEX(Таблица2[Урок]:Таблица2[Урок],ROW()+MATCH(Таблица2[[#Headers],[Блок]],INDEX(Таблица2[Блоки],ROW()-1):Таблица2[[#Totals],[Блоки]],)-1-ROW(Таблица2[#Headers]))))","v":""}]
["Блок","Раздел",null,"ИТОГО:",{"$f":"SUBTOTAL(109,Таблица2[Урок])","v":12},{"$f":"SUBTOTAL(109,Таблица2[Раздел])","v":12},{"$f":"SUBTOTAL(109,Таблица2[Блок])","v":12}]